Cogmind - Beta 10 X1 @@@ ROGUE MODE // 2020.09.04 @ 15:20:53 Player: SirMrDrProf Result: Self-destructed Performance ------------- Evolutions (3) 1500 Regions Visited (7) 1400 Robots Destroyed (30) 150 Value Destroyed (234) 234 Prototype IDs (27) 540 Alien Tech Used (0) 0 Bonus (300) 300 TOTAL SCORE: 4124 Bonus ------- Aligned with FarCom 300 Cogmind --------- Core Integrity 504/700 Matter 168/300 Energy 91/160 System Corruption 1% Temperature Cool (4) Movement Flying (32) Location -7/Lower Caves Parts ------- > --- POWER (2) -------- Light Nuclear Core > --- PROPULSION (5) --- Improved VTOL Module Improved VTOL Module > --- UTILITY (4) ------ Advanced Signal Interpreter Hacking Suite > --- WEAPON (2) ------- (None) > --- INVENTORY (4) ---- Improved Cooling System Medium Storage Unit Long-range Sensor Array Peak State ------------ > --- POWER ------------ Light Nuclear Core Enhanced Nuclear Core > --- PROPULSION ------- VTOL Module Improved VTOL Module Improved VTOL Module Improved VTOL Module > --- UTILITY ---------- Improved Cooling System Long-range Sensor Array Advanced Signal Interpreter Hacking Suite > --- WEAPON ----------- Precision Assault Rifle Axe > --- INVENTORY -------- Light Deuterium Engine Medium Storage Unit Improved Light Armor Plating Proton Missile Launcher [Rating: 45] Favorites ----------- Power Light Ion Engine Engine Light Ion Engine Power Core Light Nuclear Core Propulsion Flight Unit Flight Unit Flight Unit Utility Hacking Suite Device Improved Cooling System Processor Advanced Signal Interpreter Hackware Hacking Suite Protection Improved Light Armor Plating Weapon Light Assault Rifle Ballistic Gun Light Assault Rifle Launcher Mini Grenade Launcher Slashing Weapon Axe Piercing Weapon Spear Build | -11 -10 -10 -10 -9 -8 -7 -7 ------- Run | Scr Mat Min Exi Min Mat Fac Low Slots Evolved 6 | . . . . . 4 2 . Power 1 | . . . . . . 1 . Propulsion 3 | . . . . . 2 1 . Utility 2 | . . . . . 2 . . Weapon . | . . . . . . . . Parts Attached 46 | 1 4 6 . 3 7 21 4 Power 9 | . 1 1 . . 3 2 2 Engine 6 | . 1 1 . . 3 . 1 Core 3 | . . . . . . 2 1 Reactor . | . . . . . . . . Propulsion 9 | . 2 1 . 1 2 3 . Treads . | . . . . . . . . Leg . | . . . . . . . . Wheel . | . . . . . . . . Hover . | . . . . . . . . Flight 9 | . 2 1 . 1 2 3 . Utility 14 | . . 1 . . 2 10 1 Device 5 | . . . . . 1 3 1 Storage . | . . . . . . . . Processor 4 | . . . . . 1 3 . Hackware 3 | . . . . . . 3 . Protection 2 | . . 1 . . . 1 . Artifact . | . . . . . . . . Weapon 14 | 1 1 3 . 2 . 6 1 Energy Gun . | . . . . . . . . Energy Cannon . | . . . . . . . . Ballistic Gun 6 | 1 1 . . 2 . 2 . Ballistic Cannon . | . . . . . . . . Launcher 6 | . . 3 . . . 2 1 Special Weapon . | . . . . . . . . Impact Weapon . | . . . . . . . . Slashing Weapon 1 | . . . . . . 1 . Piercing Weapon 1 | . . . . . . 1 . Special Melee Weapon . | . . . . . . . . Unidentified Prototypes 4 | . . . . . 1 3 . Parts Lost 11 | . . 2 . . . 6 3 Power 4 | . . 1 . . . 2 1 Propulsion 3 | . . . . . . 3 . Utility . | . . . . . . . . Weapon 4 | . . 1 . . . 1 2 Highest Loss Streak 8 | . . 2 . . . 5 8 Average Slot Usage (%) 77 | . 22 74 85 85 82 90 51 Engine 8 | . 1 14 14 14 9 1 5 Core 4 | . . . . . . 13 1 Flight 27 | . 3 28 28 28 31 30 15 Device 4 | . . . . . 7 10 6 Processor 2 | . . . . . 7 6 7 Hackware 3 | . . . . . . 9 7 Protection 4 | . . 3 14 14 9 2 . Ballistic Gun 12 | . 16 19 . 10 9 6 . Launcher 7 | . . 8 28 17 9 4 3 Naked Turns . | . . . . . . . . Heaviest Build 22 | 2 6 8 8 8 13 22 12 Greatest Support 36 | 3 8 8 8 8 19 36 12 Greatest Overweight (x) 1 | . . . . . . 1 . Average Overweight (x) . | . . . . . . . . Largest Inventory Capacity 4 | 4 4 4 4 4 4 4 4 Average Capacity 4 | 4 4 4 4 4 4 4 4 Most Carried 4 | 4 4 4 4 4 4 4 4 Average Carried 3 | 2 3 3 4 4 4 3 2 Final Capacity 4 | 4 4 4 4 4 4 4 4 Final Carried 4 | 4 3 4 4 4 4 4 3 Class Distribution -------------------- 34% | Mutant 27% | Scavenger-Mutant 19% | Sprinter 10% | Scavenger-Sprinter 7% | Hacker-Sprinter Dominant Class ---------------- Mutant | -10/Materials Mutant | -10/Mines Scavenger-Mutant | -10/Exiles Scavenger-Mutant | -9/Mines Scavenger-Mutant | -8/Materials Sprinter | -7/Factory Sprinter | -7/Lower Caves Resources | -11 -10 -10 -10 -9 -8 -7 -7 ----------- Run | Scr Mat Min Exi Min Mat Fac Low Matter Collected 794 | 210 86 200 . . . 267 31 Remotely . | . . . . . . . . Salvage Created 537 | . 172 80 . 1 . 255 29 Parts 39 | . 12 5 . 3 . 17 2 Haulers Intercepted 2 | . . . . . . 2 . Recyclers Shooed 3 | . 2 . . 1 . . . Parts Field Recycled . | . . . . . . . . Retrieved Matter . | . . . . . . . . Parts Self-Destructed 1 | . . . . . . . 1 Prevented 1 | . . . . . . . 1 Kills | -11 -10 -10 -10 -9 -8 -7 -7 ------- Run | Scr Mat Min Exi Min Mat Fac Low Combat Hostiles Destroyed 19 | . 3 11 . 3 . 1 1 Guns 5 | . 3 2 . . . . . AOE 14 | . . 9 . 3 . 1 1 Classes Destroyed 7 | . 2 1 . . . 4 . Worker 4 | . . . . . . 4 . Tunneler 2 | . . . . . . 2 . Hauler 2 | . . . . . . 2 . Recycler 3 | . 2 1 . . . . . Swarmer 10 | . 3 3 . 3 . . 1 Grunt 1 | . . . . . . 1 . Assembled 8 | . . 8 . . . . . Best Kill Streak 5 | . 5 5 . 3 . 3 1 Combat Bots Only 5 | . 3 5 . 3 . 1 1 Max Kills in Single Turn 3 | . 1 3 . 1 . 1 1 Gunslinging . | . . . . . . . . Exploded 3 | . . 3 . 1 . 1 1 Melee . | . . . . . . . . Uniques/NPCs Destroyed . | . . . . . . . . Combat | -11 -10 -10 -10 -9 -8 -7 -7 -------- Run | Scr Mat Min Exi Min Mat Fac Low Damage Taken 1475 | . 98 343 . 17 91 718 208 Core 385 | . 53 112 . 9 15 131 65 Absorbed by Shields 124 | . . . . . . 124 . Core Remaining (%) 75 | 100 . . . 30 97 . . Volleys Fired 51 | . 15 20 . 3 . 10 3 Largest 2 | . 2 2 . 2 . 1 1 Hottest 60 | . 40 60 . 60 . 33 39 Shots Fired 74 | . 20 37 . 4 . 10 3 Gun 52 | . 20 28 . . . 4 . Cannon . | . . . . . . . . Launcher 22 | . . 9 . 4 . 6 3 Special . | . . . . . . . . Kinetic 52 | . 20 28 . . . 4 . Thermal . | . . . . . . . . Explosive 19 | . . 9 . 4 . 6 . Electromagnetic 3 | . . . . . . . 3 Robot Hit Streak 6 | . 6 2 . . . 3 . Robot Miss Streak 3 | . 3 3 . 3 . 1 1 Penetration Max . | . . . . . . . . Secondary Targets . | . . . . . . . . Shots Hit Robots 42 | . 12 15 . . . 15 . Core Hits 44 | . 7 19 . 4 . 12 2 Critical Hits . | . . . . . . . . Critical Kills . | . . . . . . . . Critical Parts Destroyed . | . . . . . . . . Melee Attacks 17 | . . . . . . 17 . Impact . | . . . . . . . . Slashing 6 | . . . . . . 6 . Piercing 11 | . . . . . . 11 . Sneak Attacks 7 | . . . . . . 7 . Combat Hostiles 1 | . . . . . . 1 . Follow-up Attacks . | . . . . . . . . Damage Inflicted 2259 | . 142 759 . 225 . 1006 127 Guns 272 | . 142 108 . . . 22 . Cannons . | . . . . . . . . Explosions 1141 | . . 651 . 225 . 138 127 Melee 846 | . . . . . . 846 . Ramming . | . . . . . . . . Kinetic 272 | . 142 108 . . . 22 . Thermal 104 | . . 104 . . . . . Explosive 910 | . . 547 . 225 . 138 . Electromagnetic 127 | . . . . . . . 127 Impact . | . . . . . . . . Slashing 418 | . . . . . . 418 . Piercing 428 | . . . . . . 428 . Highest Corruption 1 | . . . . . . 1 1 Average Corruption 1 | . . . . . . 1 1 Corruption Purged . | . . . . . . . . Effects 4 | . . . . . . 3 1 Energy Discharges 3 | . . . . . . 3 . Data Loss (minor) 1 | . . . . . . . 1 Overload Shots . | . . . . . . . . Overflow Damage 317 | . . 28 . 9 . 280 . Projectiles . | . . . . . . . . Explosions 37 | . . 28 . 9 . . . Melee 280 | . . . . . . 280 . Knockbacks . | . . . . . . . . Impact . | . . . . . . . . Kinetic . | . . . . . . . . Secondary . | . . . . . . . . Self-Inflicted Damage 126 | . . 116 . . . . 10 Shots 5 | . . 4 . . . . 1 Rammed . | . . . . . . . . Targets Rammed . | . . . . . . . . Kicked . | . . . . . . . . Crushed . | . . . . . . . . Highest Temperature 138 | . 4 30 . 12 6 138 . Average Temperature 25 | . 3 8 . 6 3 36 . Received Heat Transfer 396 | . . 100 . . 36 260 . Siege Activations . | . . . . . . . . Robots Corrupted . | . . . . . . . . Combat Hostiles . | . . . . . . . . Parts Fried . | . . . . . . . . Impact Corruptions . | . . . . . . . . Robots Melted . | . . . . . . . . Combat Hostiles . | . . . . . . . . Parts Melted . | . . . . . . . . Heat Transferred 100 | . . 100 . . . . . Parts Sabotaged . | . . . . . . . . Parts Stolen . | . . . . . . . . Parts Stripped . | . . . . . . . . Power Chain Reactions . | . . . . . . . . Missiles Intercepted . | . . . . . . . . Alert | -11 -10 -10 -10 -9 -8 -7 -7 ------- Run | Scr Mat Min Exi Min Mat Fac Low Peak Influence 357 | . 80 115 . 70 111 357 . Average Influence 71 | . 18 32 . 57 51 140 . Maximum Alert Level 1 | . . . . . . 1 . Low Security (%) 92 | 100 100 100 . 100 100 78 . Level 1 7 | . . . . . . 21 . Level 2 . | . . . . . . . . Level 3 . | . . . . . . . . Level 4 . | . . . . . . . . Level 5 . | . . . . . . . . High Security . | . . . . . . . . Max Security . | . . . . . . . . Squads Dispatched 7 | . . . . . 1 6 . Investigation 2 | . . . . . . 2 . Extermination 2 | . . . . . . 2 . Reinforcement 3 | . . . . . 1 2 . Assault . | . . . . . . . . Garrison . | . . . . . . . . Intercept . | . . . . . . . . Construction Impeded . | . . . . . . . . Haulers Reinforced 1 | . . . . . . 1 . Stealth | -11 -10 -10 -10 -9 -8 -7 -7 --------- Run | Scr Mat Min Exi Min Mat Fac Low Distress Signals 3 | . 1 . . . . 2 . Communications Jammed . | . . . . . . . . Distress Signals . | . . . . . . . . Times Spotted 70 | . 5 11 . 3 10 32 9 Peak Tracking Total 10 | . 3 4 . 3 6 10 4 Tactical Retreats 16 | . . 1 . 1 3 9 2 Traps | -11 -10 -10 -10 -9 -8 -7 -7 ------- Run | Scr Mat Min Exi Min Mat Fac Low Traps Triggered 2 | . . . . . . 2 . Indirectly . | . . . . . . . . Trap Hack Attempts . | . . . . . . . . Triggered . | . . . . . . . . Disarmed . | . . . . . . . . Reprogrammed . | . . . . . . . . Reused . | . . . . . . . . Traps Extracted . | . . . . . . . . Installed . | . . . . . . . . Triggered . | . . . . . . . . Machines | -11 -10 -10 -10 -9 -8 -7 -7 ---------- Run | Scr Mat Min Exi Min Mat Fac Low Machines Disabled 3 | . . 1 . . . 2 . Max in Single Turn 1 | . . 1 . . . 1 . Machines Sabotaged . | . . . . . . . . Garrisons Compromised . | . . . . . . . . Overloaded Fab Kills . | . . . . . . . . Fab Network Shutdowns . | . . . . . . . . Hacking | -11 -10 -10 -10 -9 -8 -7 -7 --------- Run | Scr Mat Min Exi Min Mat Fac Low Machines Accessed 20 | . 1 . 2 . 2 15 . Terminals 14 | . 1 . . . 2 11 . Fabricators 1 | . . . . . . 1 . Repair Stations . | . . . . . . . . Recycling Units 1 | . . . . . . 1 . Scanalyzers 1 | . . . . . . 1 . Garrison Access 1 | . . . . . . 1 . Total Hacks 54 | . 4 . 2 . 7 41 . Successful 24 | . 1 . 2 . 3 18 . Failed 30 | . 3 . . . 4 23 . Catastrophic 7 | . . . . . 2 5 . Database Lockouts . | . . . . . . . . Manual 25 | . . . 1 . 5 19 . Terminals 43 | . 4 . . . 7 32 . Fabricators 3 | . . . . . . 3 . Repair Stations . | . . . . . . . . Recycling Units 3 | . . . . . . 3 . Scanalyzers 2 | . . . . . . 2 . Garrison Access 1 | . . . . . . 1 . Terminal Hacks 17 | . 1 . 2 . 2 12 . Record 1 | . . . 1 . . . . Part Schematic 1 | . . . . . . 1 . Branch Access Points 1 | . . . . . . 1 . Terminal Index 1 | . . . . . . 1 . Locate Traps 3 | . . . . . . 3 . Transport Status 1 | . . . . . . 1 . Recall Investigation 1 | . . . . . . 1 . Recall Extermination 2 | . . . . . . 2 . Hauler Manifests 4 | . 1 . . . 1 2 . Registered Prototypes 1 | . . . . . 1 . . EX-Prototype ID Bank 1 | . . . 1 . . . . Fabricator Hacks 2 | . . . . . . 2 . Load Schematic 1 | . . . . . . 1 . Build 1 | . . . . . . 1 . Repair Station Hacks . | . . . . . . . . Recycling Unit Hacks 1 | . . . . . . 1 . Retrieve Matter 1 | . . . . . . 1 . Scanalyzer . | . . . . . . . . Garrison Access Hacks . | . . . . . . . . Unauthorized Hacks 4 | . . . . . 1 3 . Terminals 3 | . . . . . 1 2 . Assimilate 1 | . . . . . . 1 . Botnet 2 | . . . . . 1 1 . Fabricators 1 | . . . . . . 1 . Prioritize 1 | . . . . . . 1 . Repair Stations . | . . . . . . . . Recycling Units . | . . . . . . . . Scanalyzers . | . . . . . . . . Garrison Access . | . . . . . . . . Data Cores Recovered . | . . . . . . . . Used . | . . . . . . . . Hacking Detections 17 | . 1 . . . 2 14 . Full Trace Events 3 | . 1 . . . . 2 . Feedback Events 1 | . . . . . . 1 . Corruption 1 | . . . . . . 1 . Feedback Blocked . | . . . . . . . . Robot Schematics Acquired . | . . . . . . . . Robots Built . | . . . . . . . . Matter . | . . . . . . . . Time . | . . . . . . . . Total Robot Build Rating . | . . . . . . . . Part Schematics Acquired 1 | . . . . . . 1 . Parts Built 1 | . . . . . . 1 . Matter 168 | . . . . . . 168 . Time 42 | . . . . . . 42 . Total Part Build Rating 4 | . . . . . . 4 . Parts Repaired . | . . . . . . . . Time . | . . . . . . . . Parts Recycled . | . . . . . . . . Recycled Matter . | . . . . . . . . Retrieved Matter . | . . . . . . . . Retrieved Components . | . . . . . . . . Parts Scanalyzed . | . . . . . . . . Part Schematics Acquired . | . . . . . . . . Parts Damaged . | . . . . . . . . Bothacking | -11 -10 -10 -10 -9 -8 -7 -7 ------------ Run | Scr Mat Min Exi Min Mat Fac Low Used RIF Installer . | . . . . . . . . Robots Hacked . | . . . . . . . . Non-combat . | . . . . . . . . Combat . | . . . . . . . . Robot Hacks Applied . | . . . . . . . . Relay Couplers Released . | . . . . . . . . Robots Rewired . | . . . . . . . . Allies Hacked . | . . . . . . . . Hacks Repelled . | . . . . . . . . Allies | -11 -10 -10 -10 -9 -8 -7 -7 -------- Run | Scr Mat Min Exi Min Mat Fac Low Total Allies 4 | . . 3 . . . 1 . Largest Group 3 | . . 3 . . . 1 . Highest-Rated Group 40 | . . 40 . . . 10 . Highest-Rated Ally 16 | . . 16 . . . 10 . Total Orders . | . . . . . . . . Ally Attacks . | . . . . . . . . Total Damage . | . . . . . . . . Kills . | . . . . . . . . Allies Corrupted . | . . . . . . . . Allies Melted . | . . . . . . . . Intel | -11 -10 -10 -10 -9 -8 -7 -7 ------- Run | Scr Mat Min Exi Min Mat Fac Low Robot Analysis Total . | . . . . . . . . Derelict Logs Recovered 2 | . . 2 . . . . . Drone Launches . | . . . . . . . . Drone Recoveries . | . . . . . . . . Exploration | -11 -10 -10 -10 -9 -8 -7 -7 ------------- Run | Scr Mat Min Exi Min Mat Fac Low Turns Passed 2294 | 25 146 897 96 166 162 737 65 Spaces Moved 3861 | 39 68 738 246 384 365 1880 141 Core 104 | 39 65 . . . . . . Treads . | . . . . . . . . Legs . | . . . . . . . . Wheels . | . . . . . . . . Hover . | . . . . . . . . Flight 3757 | . 3 738 246 384 365 1880 141 Fastest Speed 25 | 50 37 37 37 37 31 25 32 Average Speed 32 | 50 49 37 37 37 32 27 32 Slowest Speed 111 | 50 50 37 37 37 37 111 32 Overloaded Moves . | . . . . . . . . Propulsion Burnouts . | . . . . . . . . Robots Hopped 49 | . . 1 . 10 4 31 3 Cave-ins Triggered . | . . . . . . . . Exploration Rate (%) 45 | 3 25 98 61 74 41 46 16 Regions Visited 7 Branch Regions 4 Pre-discovered Areas 4 | . . 3 1 . . . . Known Exits Taken 1 | . . . . . . 1 . Unknown Exits Taken 6 | 1 1 1 1 1 1 . . Scrap Searched 5 | . . 3 . 1 . . 1 Spaces Dug 46 | . . 22 . . . 24 . Terrain Destroyed 129 | . . 70 . 35 . 24 . Melee 5 | . . . . . . 5 . Projectile . | . . . . . . . . AOE 124 | . . 70 . 35 . 19 . Actions | -11 -10 -10 -10 -9 -8 -7 -7 --------- Run | Scr Mat Min Exi Min Mat Fac Low Total 4760 | 43 159 1327 251 394 402 2029 155 Wait 773 | . 73 556 2 12 29 94 7 Move 3765 | 38 67 735 245 366 356 1823 135 Hop 40 | . . 1 . 7 4 25 3 Pick Up 20 | 4 . 4 2 . 2 7 1 Fast Attach 26 | 1 3 3 . 1 5 13 . Attach 11 | . 1 2 . . . 4 4 Detach 5 | . . 1 . . . 2 2 Swap 9 | . . 1 . 2 2 4 . Drop 32 | . . 4 2 3 4 19 . Fire 51 | . 15 20 . 3 . 10 3 Melee 17 | . . . . . . 17 . Ram . | . . . . . . . . Kick . | . . . . . . . . Crush . | . . . . . . . . Escape Stasis 11 | . . . . . . 11 . Rewire . | . . . . . . . . Trap . | . . . . . . . . Miscellaneous . | . . . . . . . . Route ------- -11/Scrapyard -10/Materials -10/Mines (discovered 3 exits: [*Mat x2] / *Exi) -10/Exiles (discovered 2 exits: [*Min x2]) -9/Mines (discovered 2 exits: *Mat x2) -8/Materials -7/Factory (discovered 3 exits: *Fac / *Low x2) -7/Lower Caves History --------- Turn | Location | Event 5 | -11/Scrapyard | Discovered new exit (range 16) 26 | -11/Scrapyard | Entered Materials 40 | -10/Materials | Discovered new exit (range 16) 172 | -10/Materials | Entered Mines 173 | -10/Mines | Learned location of Storage (-9) 173 | -10/Mines | Assembled infested the area 308 | -10/Mines | Build established: Mutant 708 | -10/Mines | Learned location of Recycling (-9) 794 | -10/Mines | Learned location of Mines (-9) 805 | -10/Mines | Core integrity fell below 50% 833 | -10/Mines | Discovered new exit (range 15) 888 | -10/Mines | Assisted by bots powering up and referring to "LRC-V3" 930 | -10/Mines | Found a hidden stash of uninstalled traps 970 | -10/Mines | Discovered new exit (range 15) 988 | -10/Mines | Deemed a non-threat by the Exiles lab entrance 988 | -10/Mines | Discovered new exit (range 5) 1069 | -10/Mines | Entered Exiles 1074 | -10/Exiles | Discovered new exit (range 15) 1079 | -10/Exiles | Met 8R-AWN 1085 | -10/Exiles | Met EX-HEX 1097 | -10/Exiles | Build established: Scavenger-Mutant 1099 | -10/Exiles | Met EX-DEC 1101 | -10/Exiles | Learned location of Zion (-6) 1107 | -10/Exiles | Met EX-BIN 1113 | -10/Exiles | Aligned with FarCom system 1113 | -10/Exiles | Given EX-Vault access code 1122 | -10/Exiles | Opened EX-Vault 1126 | -10/Exiles | Found PSU Rigger 1129 | -10/Exiles | Found Chronowheel 1137 | -10/Exiles | Warned to stay clear of 0b10 Research branches 1161 | -10/Exiles | Discovered new exit (range 14) 1165 | -10/Exiles | Stole two prototypes: PSU Rigger, Chronowheel 1165 | -10/Exiles | Entered Mines 1170 | -9/Mines | Discovered new exit (range 10) 1247 | -9/Mines | Discovered new exit (range 15) 1265 | -9/Mines | Received a Rocket Launcher from a helpful Derelict 1331 | -9/Mines | Entered Materials 1331 | -8/Materials | Evolved 4 slots: Propulsion x2, Utility x2 1473 | -8/Materials | Discovered new exit (range 5) 1493 | -8/Materials | Entered Factory 1493 | -7/Factory | Evolved 2 slots: Power x1, Propulsion x1 1495 | -7/Factory | FarCom data flow suspended 1506 | -7/Factory | Discovered new exit (range 20) 1716 | -7/Factory | Identified exit to Lower Caves 1837 | -7/Factory | Fabricated Lrn. Sensor Array (x1) 1855 | -7/Factory | Identified exit to Factory 2120 | -7/Factory | Build established: Sprinter 2230 | -7/Factory | Entered Lower Caves 2245 | -7/Lower Caves | Spotted B-75 Beast 2295 | -7/Lower Caves | Self-destructed Last Messages --------------- 02226_ Imp. VTOL Module destroyed. 02227_ Enh. Nuclear Core destroyed. 02228_ T-07 Excavator is excavating. LOCATION=LOWER CAVES GOAL=ESCAPE 02231_ D5-R0W(k) breaks down the debris. 02231_ N5-QC7(k) breaks down the debris. 02231_ TY-0SX(k) breaks down the debris. 02237_ Searching scrap... 02237_ Found 31 Matter. 02237_ Found Shield Generator. 02237_ Found Heat Shielding. 02238_ Acquired 31 matter. 02254_ Spear destroyed. 02272_ S-27 Virus IFF system glitched. 02277_ System corrupted: Component data lost. 02278_ Acquired Lgt. Nuclear Core. 02280_ Lgt. Deuterium Engine destroyed. 02291_ Proton Missile Launcher destroyed. 02292_ S-27 Virus IFF system glitched. Map ----- +----------------------------------------------------+ | ?????????????????????????????????????????????????? | | ?????????????????????????????????????????????????? | | ?????????????????????????????????????????????????? | | ?????????????????????????????????????????????????? | | ?????????????????????????????????????????????????? | | ?????????????????????????????????????????????????? | | ?????????????????????????????????????????????????? | | ?????????????????????????????????????????????????? | | ?????????????????????????????????????????????????? | | ?????????????????????????????????????????????????? | | ?????????????????????????????????????????????????? | | ?????????????????????????????????????????????????? | | ????#########????????###????###??????????????????? | | ???## #???????## #???## #??????????????????? | | ??## #????#### ##??# #??????????????????? | | ??# ! #???## ##?# ##?????????????????? | | ?## =% ####???# ### ####??????????????? | | ## ##!#???#### ## #??????????????? | | # ###%#??## #### #??????????????? | | ##?# #?## ##?# #??????????????? | | ## #### ### ### ## #??????????????? | | ### % #?# ## % ###### #??????????????? | | = #?# ##??## ##?????????????? | | # # ### ##?# #####?????????? | | # ## ### #?????????? | | # ### @ #?????????? | | # ### ## ## ##?????????? | | ## ##?# ### #? #??????????? | | ### #??# ##?# #?????????? | | ##?# #??## ##??## ## #????????? | | ##?? ???###????# ### ##????????? | | #?? ??????????# #?# ##?????????? | | ?? ?????????# #? ##??????????? | | ? #????????## ### #? ##???????????? | | # ###?????????## #?# #? #????????????? | | #?????????????# #?# #? #????????????? | | ? ??????????????# #?# ##? #????????????? | | ??? ?????????????? #?# ##??? ?#????????????? | | ???? ?????????????? #??###?????????????????????? | | ???????????????????? ???????????????????????????? | | ?????????????????????????????????????????????????? | | ?????????????????????????????????????????????????? | | ?????????????????????????????????????????????????? | | ?????????????????????????????????????????????????? | | ?????????????????????????????????????????????????? | | ?????????????????????????????????????????????????? | | ?????????????????????????????????????????????????? | | ?????????????????????????????????????????????????? | | ?????????????????????????????????????????????????? | | ?????????????????????????????????????????????????? | +----------------------------------------------------+ Best States ------------- Heat Dissipation 61 Energy Generation 26 Energy Capacity 360 Matter Stores 300 Matter Capacity 300 Sight Range 22 Robot Scan Range 20 Terrain Scan Density 10 Additional Mass Support 9 Armor Coverage 150 Evasion (%) 65 Targeting Accuracy 8 Offensive Hacking 30 Item Schematics ----------------- Lrn. Sensor Array | -7/Factory | Hacked Robot Schematics ------------------ None Fabricated ------------ Lrn. Sensor Array | x1 | -7/Factory Alien Tech Used ----------------- None Achievements -------------- None Challenges ------------ None Game ------ Seed ProtonMasterNanosword Manual? 0 Play Time 00:33:47 Cumulative 323.3 hours Start 2020.09.04 @ 14:47:38 End 2020.09.04 @ 15:20:53 Sessions 1 Manual Loads 0 Difficulty Rogue Special Mode None Game No. 179 Rogue 179 Adventurer 0 Explorer 0 Win Type - Total 24 Types 9/7/4/1/0/0/3 Lore% 94 Gallery% 93 Achievement% 78 Wizard Run 0 Options --------- ASCII 0 Keyboard 0 Movement Numpad Keybinds 0 Fullscreen 2 Font 18/SmallcapsGlow Map View 76x50 Tactical HUD 1 Map Filters NONE Filters NONE Steam 1 RUN: 129ed23d-f208-451e-8137-0fad6c93cb9d